fUSD/lending_fUSD_20240921
["ID","MTS","AMOUNT","RATE_DAILY","PERIOD"]
[338698197,1726883448317,-317.605056,0.00014784,2]
[338698198,1726883448326,-520.865607,0.00014784,2]
[338698199,1726883448336,-520.865607,0.00014784,2]
[338698200,1726883448345,-151.0,0.00014784,2]
[338698201,1726883448574,-151.0,0.00014784,2]
[338698202,1726883448584,-279.92357,0.00014784,2]
[338698203,1726883448594,-294.624263,0.00014784,2]
[338698204,1726883448603,-279.92357,0.00014784,2]
[338698205,1726883448612,-294.624263,0.00014784,2]
[338698206,1726883448622,-10000.0,0.00014784,2]
[338698207,1726883448631,-10000.0,0.00014784,2]
[338698208,1726883448640,-745.357041,0.00014784,2]
[338698209,1726883448649,-10000.0,0.00014784,2]
[338698210,1726883448659,-745.357041,0.00014784,2]
[338698211,1726883448668,-1045.779014,0.00014784,2]
[338698212,1726883448677,-10000.0,0.00014784,2]
[338698213,1726883448686,-1045.779014,0.00014784,2]
[338698214,1726883448695,-2331.061535,0.00014784,2]
[338698215,1726883448704,-504.262223,0.00014784,2]
[338698216,1726883448713,-152.583521,0.00014784,2]
[338698217,1726883448722,-504.262223,0.00014784,2]
[338698218,1726883448731,-245.521652,0.00014784,2]
[338698219,1726883448740,-245.521652,0.00014784,2]
[338698220,1726883448749,-151.0,0.00014784,2]
[338698221,1726883448758,-151.0,0.00014784,2]
[338698222,1726883448767,-151.403616,0.00014784,2]
[338698223,1726883448776,-151.0,0.00014784,2]
[338698224,1726883448785,-481.145634,0.00014784,2]
[338698225,1726883448794,-481.145634,0.00014784,2]
[338698226,1726883448803,-151.0,0.00014784,2]
[338698227,1726883448812,-367.95764,0.00014784,2]
[338698228,1726883448822,-367.95764,0.00014784,2]
[338698229,1726883448831,-491.388823,0.00014784,2]
[338698230,1726883448840,-151.0,0.00014784,2]
[338698231,1726883448849,-491.388823,0.00014784,2]
[338698232,1726883448858,-151.0,0.00014784,2]
[338698233,1726883448867,-151.0,0.00014784,2]
[338698234,1726883448876,-287.900813,0.00014784,2]
[338698235,1726883448886,-151.0,0.00014784,2]
[338698236,1726883448895,-287.900813,0.00014784,2]
[338698237,1726883448905,-6926.78408228,0.00014784,2]
[338698238,1726883448921,-5120.18609068,0.00014784,2]
[338698239,1726883448959,-2659.11323787,0.00014784,2]
[338698240,1726883448970,-3911.4206032,0.00014784,2]
[338698241,1726883448979,-500.0,0.00014785,2]
[338698242,1726883448988,-2246.54853388,0.0001479,7]
[338698243,1726883448999,-3154.1894036,0.0001479,7]
[338698244,1726883449023,-1552.725,0.0001479,7]
[338698245,1726883459058,1050.0,0.00011,2]
[338698246,1726883496882,500.0,0.00011164,2]
[338698247,1726883558415,500.0,0.00011164,2]
[338698249,1726883722072,500.0,0.00011164,2]
[338698251,1726883760690,155.15,0.00010959,2]
[338698273,1726883982253,338.72,0.00011315,2]
[338698276,1726884281330,1001.0,0.00011,2]
[338698277,1726884310120,1001.0,0.00012,2]
[338698280,1726884446109,-2266.09776036,0.00012915,2]
[338698282,1726884492872,311.59,0.00010959,2]
[338698283,1726884524748,321.78,0.00011233,2]
[338698285,1726884631921,-255.5570155,0.00012915,2]
[338698288,1726884631933,-478.34522414,0.00012915,2]
[338698290,1726884631942,-250.0,0.00012958,2]
[338698291,1726884631952,-1000.0,0.00012988,2]
[338698292,1726884631961,-300.0,0.00012999,2]
[338698293,1726884631971,-1100.0,0.00013,2]
[338698294,1726884631980,-617.85,0.00013,2]
[338698295,1726884631989,-477.11282308,0.00013,2]
[338698296,1726884632116,-524.38717692,0.00013,2]
[338698297,1726884632126,-289.48,0.00013007,2]
[338698298,1726884632135,-86.13282108,0.00013088,2]
[338698299,1726884632146,-377.99717892,0.00013088,2]
[338698300,1726884632155,-150.0,0.00013099,2]
[338698301,1726884632164,-81.8662677,0.00013105,2]
[338698302,1726884632176,-168.1337323,0.00013105,2]
[338698303,1726884632185,-3168.74790987,0.0001311,2]
[338698304,1726884632196,-1087.19209013,0.0001311,2]
[338698305,1726884632206,-4606.79256587,0.0001311,2]
[338698306,1726884632218,-3953.76743413,0.0001311,2]
[338698307,1726884632228,-810.06,0.0001311,2]
[338698308,1726884632238,-13101.77,0.00013116,2]
[338698309,1726884632248,-1852.42,0.00013119,2]
[338698310,1726884632258,-2047.78,0.00013119,2]
[338698311,1726884632269,-198.22,0.00013156,2]
[338698312,1726884632279,-150.0,0.00013192,2]
[338698313,1726884632289,-8373.296,0.00013193,2]
[338698314,1726884632299,-2064.0038,0.00013193,2]
[338698316,1726884632309,-326.91268026,0.00013193,2]
[338698317,1726884632320,-150.99,0.00013257,2]
[338698318,1726884632330,-499.99,0.00013258,2]
[338698319,1726884632340,-1000.0,0.00013287,2]
[338698320,1726884632349,-330.53,0.00013288,2]
[338698321,1726884632360,-152.05302842,0.0001329,2]
[338698322,1726884632369,-150.0,0.00013381,2]
[338698323,1726884632379,-150.327,0.00013382,2]
[338698324,1726884632389,-535.826,0.00013382,2]
[338698325,1726884632398,-431.958,0.00013382,2]
[338698326,1726884632408,-619.651,0.00013382,2]
[338698327,1726884632418,-174.581,0.00013382,2]
[338698328,1726884632428,-554.447,0.00013382,2]
[338698329,1726884632438,-809.0,0.00013382,2]
[338698330,1726884632447,-927.346,0.00013382,2]
[338698331,1726884632457,-553.0,0.00013382,2]
[338698332,1726884632467,-1903.0,0.00013382,2]
[338698333,1726884632476,-3347.0,0.00013382,2]
[338698334,1726884632486,-1913.0,0.00013382,2]
[338698335,1726884632496,-806.0,0.00013382,2]
[338698336,1726884632506,-248.0,0.00013382,2]
[338698337,1726884632515,-5867.0,0.00013391,2]
[338698338,1726884632524,-13490.0,0.00013391,2]
[338698339,1726884632534,-150.0,0.00013391,2]
[338698340,1726884632543,-1147.0,0.00013391,2]
[338698341,1726884632553,-159.46620208,0.00013445,2]
[338698342,1726884632562,-5794.5679,0.00013461,2]
[338698343,1726884632573,-184.25015255,0.00013471,2]
[338698344,1726884632582,-321.78,0.00013497,2]
[338698345,1726884632592,-41808.14697573,0.00013561,2]
[338698346,1726884632625,-3574.74332427,0.00013561,2]
[338698347,1726884632635,-182.04,0.00013698,2]
[338698348,1726884632644,-364.41,0.00013699,2]
[338698349,1726884632654,-1828.80667573,0.00013699,2]
[338698350,1726884632665,-922.19332427,0.00013699,2]
[338698351,1726884632674,-150.0,0.00013699,2]
[338698352,1726884632684,-200.0,0.00013699,2]
[338698353,1726884632694,-1127.80667571,0.000137,2]
[338698354,1726884632707,-122.19332429,0.000137,2]
[338698355,1726884632717,-1075.20907413,0.00013804,2]
[338698356,1726884632727,-11785.4588,0.00013835,2]
[338698357,1726884632736,-500.0,0.00013904,2]
[338698358,1726884632747,-500.0,0.00013904,2]
[338698359,1726884632757,-150.0,0.00014059,2]
[338698360,1726884632767,-1001.5,0.0001419,2]
[338698361,1726884632778,-383.29,0.0001424,2]
[338698362,1726884632789,-172.324,0.0001424,2]
[338698363,1726884632798,-420.0,0.00014256,2]
[338698364,1726884632807,-1966.5415166,0.000143,2]
[338698365,1726884632816,-255.0,0.00014301,2]
[338698366,1726884632826,-364.41,0.00014384,2]
[338698367,1726884632835,-359.0,0.000144,2]
[338698368,1726884632845,-1000.0,0.000144,2]
[338698369,1726884632854,-227.0,0.000144,2]
[338698370,1726884632865,-150.0,0.0001442,2]
[338698371,1726884632874,-500.0,0.00014464,2]
[338698372,1726884632884,-500.0,0.00014464,2]
[338698373,1726884632893,-500.0,0.00014464,2]
[338698374,1726884632903,-500.0,0.00014464,2]
[338698375,1726884632912,-500.0,0.00014464,2]
[338698376,1726884632921,-500.0,0.00014464,2]
[338698377,1726884632931,-500.0,0.00014464,2]
[338698378,1726884632941,-500.0,0.00014464,2]
[338698379,1726884632950,-500.0,0.00014464,2]
[338698380,1726884632959,-500.0,0.00014464,2]
[338698381,1726884632969,-500.0,0.00014464,2]
[338698382,1726884632979,-419.2,0.00014464,2]
[338698383,1726884632988,-5000.0,0.000145,2]
[338698384,1726884632997,-150.0,0.00014513,2]
[338698385,1726884633008,-150.0,0.00014515,2]
[338698386,1726884633017,-153.86046822,0.00014517,2]
[338698387,1726884633026,-762.340557,0.00014521,2]
[338698388,1726884633036,-158.78,0.00014521,2]
[338698389,1726884633045,-235.88409126,0.00014527,2]
[338698390,1726884633055,-150.0,0.00014528,2]
[338698391,1726884633064,-353.1771,0.00014534,2]
[338698392,1726884633077,-150.0,0.00014538,2]
[338698393,1726884633086,-150.0,0.00014547,2]
[338698394,1726884633097,-150.0,0.00014564,2]
[338698395,1726884633107,-150.0,0.00014574,2]
[338698396,1726884633116,-150.0,0.00014578,2]
[338698397,1726884633127,-150.0,0.00014584,2]
[338698398,1726884633136,-150.0,0.00014586,2]
[338698399,1726884633145,-150.0,0.00014586,2]
[338698400,1726884633155,-150.0,0.00014589,2]
[338698401,1726884633165,-1079.70192615,0.0001459,2]
[338698402,1726884633175,-5000.0,0.000146,2]
[338698403,1726884633184,-1079.70192615,0.00014605,2]
[338698404,1726884633194,-500.0,0.00014609,2]
[338698405,1726884633204,-2000.0,0.00014609,2]
[338698406,1726884633213,-500.0,0.00014609,2]
[338698407,1726884633222,-500.0,0.00014609,2]
[338698408,1726884633231,-200.0,0.00014609,2]
[338698409,1726884633241,-150.0,0.00014611,2]
[338698410,1726884633250,-1079.70192615,0.0001462,2]
[338698411,1726884633260,-150.0,0.00014623,2]
[338698412,1726884633270,-1079.70192615,0.00014635,2]
[338698413,1726884633279,-150.0,0.00014638,2]
[338698414,1726884633289,-150.0,0.00014638,2]
[338698415,1726884633298,-357.98,0.00014638,2]
[338698416,1726884633308,-151.15,0.00014638,2]
[338698417,1726884633318,-150.37,0.00014638,2]
[338698418,1726884633335,-361.14,0.00014638,2]
[338698419,1726884633345,-250.7,0.00014638,2]
[338698420,1726884633355,-151.01,0.00014638,2]
[338698421,1726884633365,-150.0,0.00014638,2]
[338698422,1726884633374,-150.0,0.00014638,2]
[338698423,1726884633384,-150.0,0.00014638,2]
[338698424,1726884633393,-431.59,0.00014638,2]
[338698425,1726884633403,-150.0,0.00014638,2]
[338698426,1726884633412,-150.0,0.00014638,2]
[338698427,1726884633422,-428.14,0.00014638,2]
[338698428,1726884633431,-150.0,0.00014638,2]
[338698429,1726884633440,-150.0,0.00014638,2]
[338698430,1726884633449,-428.14,0.00014638,2]
[338698431,1726884633459,-647.62,0.00014638,2]
[338698432,1726884633469,-150.0,0.00014638,2]
[338698433,1726884633478,-150.0,0.00014638,2]
[338698434,1726884633487,-150.0,0.00014638,2]
[338698435,1726884633495,-150.0,0.00014638,2]
[338698436,1726884633504,-428.14,0.00014638,2]
[338698437,1726884633514,-178.55,0.00014638,2]
[338698438,1726884633523,-150.0,0.0001464,2]
[338698439,1726884633532,-150.0,0.00014641,2]
[338698440,1726884633542,-1500.0,0.00014642,2]
[338698441,1726884633552,-150.0,0.00014645,2]
[338698442,1726884633561,-1079.70192615,0.00014649,2]
[338698443,1726884633574,-1529.69752805,0.00014663,2]
[338698444,1726884633584,-150.0,0.00014663,2]
[338698445,1726884633594,-1079.70192615,0.00014664,2]
[338698446,1726884633603,-318.97284955,0.00014673,2]
[338698447,1726884633613,-1079.70192615,0.00014679,2]
[338698448,1726884633623,-1548.48225037,0.0001468,2]
[338698449,1726884633632,-812.33784458,0.0001468,2]
[338698450,1726884633641,-1677.656,0.0001468,2]
[338698451,1726884633651,-1588.568,0.0001468,2]
[338698452,1726884633661,-175.7589999,0.00014684,2]
[338698453,1726884633670,-182.7629822,0.00014684,2]
[338698454,1726884633680,-158.88368566,0.00014684,2]
[338698455,1726884633690,-167.78396599,0.00014684,2]
[338698456,1726884633708,-9997.946,0.0001469,2]
[338698457,1726884633722,-87418.8575,0.0001469,2]
[338698458,1726884633732,-337.4319,0.0001469,2]
[338698459,1726884633744,-182.7629822,0.00014694,2]
[338698460,1726884633754,-1079.70192615,0.00014694,2]
[338698461,1726884633763,-150.0,0.00014707,2]
[338698462,1726884633774,-150.0,0.00014713,2]
[338698463,1726884633783,-150.0,0.00014733,2]
[338698464,1726884633793,-150.0,0.00014746,2]
[338698465,1726884633803,-150.0,0.00014757,2]
[338698466,1726884633814,-38055.7657191,0.00014763,2]
[338698467,1726884633825,-154.05,0.00014763,2]
[338698468,1726884633834,-19027.8828596,0.00014764,2]
[338698469,1726884633844,-29679.1755432,0.00014764,2]
[338698470,1726884633854,-400.0,0.0001477,2]
[338698471,1726884633863,-151.0,0.0001477,2]
[338698472,1726884633873,-19027.8828596,0.0001477,2]
[338698473,1726884633882,-25662.4616853,0.0001477,2]
[338698474,1726884637956,-245.39,0.00013106,2]
[338698475,1726884637966,-245.39,0.00013381,2]
[338698476,1726884637975,-162.89901261,0.00013391,2]
[338698477,1726884637986,-835.77,0.00013391,2]
[338698478,1726884637997,-81.33098739,0.00013391,2]
[338698479,1726884638006,-245.39,0.00013551,2]
[338698480,1726884638015,-299.44894329,0.0001477,2]
[338698481,1726884638078,-2735.53908701,0.0001477,2]
[338698482,1726884638088,-255.3477856,0.0001477,2]
[338698483,1726884638382,-3936.04611518,0.0001477,2]
[338698484,1726884638393,-603.57834722,0.0001477,2]
[338698485,1726884638405,-413.90859938,0.0001477,2]
[338698486,1726884638437,-25452.02052352,0.0001477,2]
[338698487,1726884638446,-500.0,0.00014773,2]
[338698488,1726884638456,-200.36047922,0.00014773,2]
[338698489,1726884638465,-502.77966543,0.00014773,2]
[338698491,1726884638474,-500.0,0.00014773,2]
[338698493,1726884638483,-19027.8828596,0.00014773,2]
[338698495,1726884638492,-500.0,0.00014773,2]
[338698497,1726884638501,-522.14143487,0.00014773,2]
[338698499,1726884638511,-502.3083254,0.00014773,2]
[338698501,1726884638520,-500.0,0.00014773,2]
[338698503,1726884638529,-500.0,0.00014773,2]
[338698505,1726884638538,-613.04699076,0.00014773,2]
[338698506,1726884638547,-151.0,0.00014773,2]
[338698508,1726884638557,-367.140277,0.00014773,2]
[338698510,1726884638566,-151.0,0.00014773,2]
[338698512,1726884638576,-367.140277,0.00014773,2]
[338698514,1726884638586,-154.05,0.00014773,2]
[338698516,1726884638595,-57083.6485787,0.00014774,2]
[338698518,1726884638604,-29679.1755432,0.00014774,2]
[338698520,1726884638613,-171250.945736,0.00014774,2]
[338698522,1726884638622,-154.05,0.00014774,2]
[338698524,1726884638631,-151.133447,0.00014774,2]
[338698526,1726884638640,-367.140277,0.00014774,2]
[338698528,1726884638650,-367.140277,0.00014774,2]
[338698530,1726884638659,-150.0,0.00014774,2]
[338698532,1726884638670,-19027.8828596,0.00014774,2]
[338698534,1726884638679,-151.0,0.0001478,2]
[338698536,1726884638689,-150.0,0.0001478,2]
[338698538,1726884638702,-76111.5314382,0.0001478,2]
[338698540,1726884638712,-89037.5266297,0.0001478,2]
[338698542,1726884638721,-19027.8828596,0.00014783,2]
[338698544,1726884638730,-1000.0,0.00014783,2]
[338698546,1726884638741,-3308.7038276,0.00014783,2]
[338698548,1726884638750,-349.5018894,0.00014783,2]
[338698550,1726884638759,-190.17163742,0.00014784,2]
[338698552,1726884638770,-165.92989338,0.00014784,2]
[338698554,1726884638780,-17433.26766476,0.00014784,2]
[338698556,1726884638789,-19027.8828596,0.00014784,2]
[338698558,1726884638799,-118716.702173,0.00014784,2]
[338698560,1726884638808,-154.05,0.00014784,2]
[338698562,1726884638817,-296791.755432,0.00014784,2]
[338698564,1726884638828,-367.140277,0.00014784,2]
[338698566,1726884638837,-367.140277,0.00014784,2]
[338698568,1726884638847,-4763.79317746,0.00014784,2]
[338698570,1726884638856,-250.852931,0.00014784,2]
[338698572,1726884638865,-250.852931,0.00014784,2]
[338698574,1726884638875,-250.852931,0.00014784,2]
[338698576,1726884638884,-250.852931,0.00014784,2]
[338698578,1726884638893,-151.0,0.00014784,2]
[338698579,1726884638903,-151.0,0.00014784,2]
[338698582,1726884638912,-199.792738,0.00014784,2]
[338698583,1726884638921,-199.792738,0.00014784,2]
[338698585,1726884638931,-199.792738,0.00014784,2]
[338698587,1726884638940,-199.792738,0.00014784,2]
[338698589,1726884638949,-206.763925,0.00014784,2]
[338698591,1726884638958,-206.763925,0.00014784,2]
[338698593,1726884638967,-151.0,0.00014784,2]
[338698595,1726884638976,-151.0,0.00014784,2]
[338698597,1726884638985,-151.0,0.00014784,2]
[338698599,1726884638995,-151.0,0.00014784,2]
[338698601,1726884639004,-351.704714,0.00014784,2]
[338698603,1726884639013,-351.704714,0.00014784,2]
[338698604,1726884639022,-377.427854,0.00014784,2]
[338698606,1726884639031,-377.427854,0.00014784,2]
[338698608,1726884639041,-351.704714,0.00014784,2]
[338698610,1726884639051,-377.427854,0.00014784,2]
[338698612,1726884639060,-377.427854,0.00014784,2]
[338698614,1726884639069,-351.704714,0.00014784,2]
[338698616,1726884639079,-153.060581,0.00014784,2]
[338698618,1726884639089,-834.053022,0.00014784,2]
[338698620,1726884639099,-834.053022,0.00014784,2]
[338698622,1726884639108,-479.191859,0.00014784,2]
[338698624,1726884639118,-479.191859,0.00014784,2]
[338698626,1726884639126,-479.191859,0.00014784,2]
[338698628,1726884639136,-479.191859,0.00014784,2]
[338698630,1726884639145,-151.0,0.00014784,2]
[338698631,1726884639154,-151.0,0.00014784,2]
[338698633,1726884639163,-212.370344,0.00014784,2]
[338698635,1726884639172,-151.226777,0.00014784,2]
[338698637,1726884639181,-171.865156,0.00014784,2]
[338698639,1726884639190,-171.865156,0.00014784,2]
[338698641,1726884639200,-171.865156,0.00014784,2]
[338698643,1726884639209,-171.865156,0.00014784,2]
[338698645,1726884639219,-151.0,0.00014784,2]
[338698647,1726884639228,-152.504945,0.00014784,2]
[338698649,1726884639237,-10000.0,0.00014784,2]
[338698651,1726884639246,-10000.0,0.00014784,2]
[338698653,1726884639258,-10000.0,0.00014784,2]
[338698655,1726884639267,-10000.0,0.00014784,2]
[338698657,1726884639277,-973.925412,0.00014784,2]
[338698659,1726884639287,-973.925412,0.00014784,2]
[338698661,1726884639297,-10000.0,0.00014784,2]
[338698663,1726884639306,-10000.0,0.00014784,2]
[338698664,1726884639316,-973.925412,0.00014784,2]
[338698666,1726884639327,-973.925412,0.00014784,2]
[338698668,1726884639336,-131568.63941789,0.0001479,7]
[338698670,1726884639345,-520.865607,0.0001479,2]
[338698672,1726884639355,-520.865607,0.0001479,2]
[338698674,1726884639366,-151.0,0.0001479,2]
[338698676,1726884639377,-1045.779014,0.0001479,2]
[338698678,1726884639387,-1045.779014,0.0001479,2]
[338698680,1726884639398,-504.262223,0.0001479,2]
[338698682,1726884639410,-504.262223,0.0001479,2]
[338698684,1726884639420,-151.0,0.0001479,2]
[338698686,1726884639429,-151.0,0.0001479,2]
[338698688,1726884639439,-151.0,0.0001479,2]
[338698690,1726884639448,-151.0,0.0001479,2]
[338698692,1726884639457,-151.0,0.0001479,2]
[338698694,1726884639467,-151.0,0.0001479,2]
[338698696,1726884639476,-151.0,0.0001479,2]
[338698698,1726884639485,-323.37176,0.0001479,2]
[338698700,1726884639496,-323.37176,0.0001479,2]
[338698702,1726884639507,-349.861358,0.0001479,2]
[338698704,1726884639516,-349.861358,0.0001479,2]
[338698706,1726884639526,-151.0,0.0001479,2]
[338698709,1726884639538,-151.0,0.0001479,2]
[338698711,1726884639549,-447.423653,0.0001479,2]
[338698713,1726884639559,-447.423653,0.0001479,2]
[338698715,1726884639571,-151.0,0.0001479,2]
[338698717,1726884639582,-151.0,0.0001479,2]
[338698719,1726884639591,-253.224228,0.0001479,2]
[338698721,1726884639601,-151.0,0.0001479,2]
[338698723,1726884639611,-197.332676,0.0001479,2]
[338698725,1726884639621,-197.332676,0.0001479,2]
[338698726,1726884639630,-151.0,0.0001479,2]
[338698728,1726884639640,-275.875064,0.0001479,2]
[338698730,1726884639650,-239.398052,0.0001479,2]
[338698733,1726884639662,-275.875064,0.0001479,2]
[338698735,1726884639673,-201.530569,0.0001479,2]
[338698737,1726884639683,-151.0,0.0001479,2]
[338698739,1726884639695,-201.530569,0.0001479,2]
[338698741,1726884639710,-151.0,0.0001479,2]
[338698743,1726884639720,-195.946499,0.0001479,2]
[338698745,1726884639730,-195.946499,0.0001479,2]
[338698747,1726884639739,-151.0,0.0001479,2]
[338698749,1726884639749,-330.626822,0.0001479,2]
[338698751,1726884639760,-330.626822,0.0001479,2]
[338698753,1726884639772,-151.0,0.0001479,2]
[338698756,1726884639782,-151.0,0.0001479,2]
[338698758,1726884639792,-157.859699,0.0001479,2]
[338698760,1726884639802,-157.859699,0.0001479,2]
[338698762,1726884639812,-265.183301,0.0001479,2]
[338698764,1726884639822,-265.183301,0.0001479,2]
[338698766,1726884639840,-222.323539,0.0001479,2]
[338698768,1726884639850,-151.0,0.0001479,2]
[338698770,1726884639859,-222.323539,0.0001479,2]
[338698772,1726884639869,-521.749929,0.0001479,2]
[338698774,1726884639878,-521.749929,0.0001479,2]
[338698776,1726884639887,-151.0,0.0001479,2]
[338698778,1726884639896,-151.0,0.0001479,2]
[338698781,1726884639905,-151.799488,0.0001479,2]
[338698784,1726884639914,-1000.0,0.00014793,2]
[338698786,1726884639924,-1000.0,0.00014793,2]
[338698788,1726884639934,-1000.0,0.00014793,2]
[338698790,1726884639943,-1000.0,0.00014793,2]
[338698792,1726884639953,-1000.0,0.00014793,2]
[338698794,1726884639962,-2000.0,0.00014793,2]
[338698796,1726884639971,-300.0,0.00014793,2]
[338698798,1726884639981,-300.0,0.00014793,2]
[338698800,1726884639990,-300.0,0.00014793,2]
[338698802,1726884640000,-500.0,0.00014793,2]
[338698804,1726884640010,-500.0,0.00014793,2]
[338698806,1726884640019,-882.62940011,0.00014793,2]
[338698808,1726884640028,-300.0,0.00014793,2]
[338698810,1726884640039,-300.0,0.00014793,2]
[338698812,1726884640048,-302.37313681,0.00014793,2]
[338698814,1726884640058,-500.0,0.00014793,2]
[338698816,1726884640067,-500.0,0.00014793,2]
[338698818,1726884640081,-300.0,0.00014793,2]
[338698820,1726884640090,-300.0,0.00014793,2]
[338698822,1726884640099,-300.0,0.00014793,2]
[338698824,1726884640108,-11137.56214375,0.00014794,2]
[338698826,1726884640117,-249769.13074256,0.00014794,2]
[338698828,1726884640126,-165.92989338,0.00014794,2]
[338698830,1726884640135,-165.92989338,0.00014794,2]
[338698832,1726884640145,-17433.26766476,0.00014794,2]
[338698834,1726884640154,-17433.26766476,0.00014794,2]
[338698836,1726884640163,-17433.26766476,0.00014794,2]
[338698838,1726884640173,-17433.26766476,0.00014794,2]
[338698840,1726884640184,-1369.1094223,0.00014794,2]
[338698842,1726884640197,-500.0,0.00014794,2]
[338698844,1726884640206,-151.0,0.00014794,2]
[338698846,1726884640217,-151.0,0.00014794,2]
[338698848,1726884640226,-151.0,0.00014794,2]
[338698850,1726884640235,-151.0,0.00014794,2]
[338698853,1726884640245,-217.030059,0.00014794,2]
[338698855,1726884640255,-151.0,0.00014794,2]
[338698857,1726884640264,-152.878535,0.00014794,2]
[338698859,1726884640273,-324.274313,0.00014794,2]
[338698861,1726884640283,-324.274313,0.00014794,2]
[338698863,1726884640292,-324.274313,0.00014794,2]
[338698864,1726884640301,-168.874332,0.00014794,2]
[338698866,1726884640311,-168.874332,0.00014794,2]
[338698868,1726884640320,-168.874332,0.00014794,2]
[338698870,1726884640333,-168.874332,0.00014794,2]
[338698872,1726884640342,-168.874332,0.00014794,2]
[338698874,1726884640352,-168.874332,0.00014794,2]
[338698876,1726884640361,-168.874332,0.00014794,2]
[338698878,1726884640371,-168.874332,0.00014794,2]
[338698880,1726884640380,-168.874332,0.00014794,2]
[338698883,1726884640391,-168.874332,0.00014794,2]
[338698885,1726884640402,-168.874332,0.00014794,2]
[338698887,1726884640411,-168.874332,0.00014794,2]
[338698889,1726884640420,-168.874332,0.00014794,2]
[338698891,1726884640431,-168.874328,0.00014794,2]
[338698893,1726884640443,-5174.79840437,0.00014794,2]
[338698972,1726884641270,-22051.28947663,0.00014794,2]
[338698973,1726884641280,-27226.087881,0.00014794,2]
[338698974,1726884641289,-27226.087881,0.00014794,2]
[338698975,1726884641298,-981.910093,0.00014794,2]
[338698976,1726884641307,-981.910093,0.00014794,2]
[338698977,1726884641317,-981.910093,0.00014794,2]
[338698978,1726884641326,-306.701348,0.00014794,2]
[338698979,1726884641335,-306.701348,0.00014794,2]
[338698980,1726884641345,-306.701348,0.00014794,2]
[338698981,1726884641354,-306.701348,0.00014794,2]
[338698982,1726884641363,-306.701348,0.00014794,2]
[338698983,1726884641372,-306.701348,0.00014794,2]
[338698984,1726884641382,-306.701348,0.00014794,2]
[338698985,1726884641392,-306.701348,0.00014794,2]
[338698986,1726884641401,-306.701348,0.00014794,2]
[338698988,1726884641411,-306.701348,0.00014794,2]
[338698989,1726884641421,-306.701348,0.00014794,2]
[338698991,1726884641431,-306.701348,0.00014794,2]
[338698993,1726884641440,-306.701348,0.00014794,2]
[338698995,1726884641450,-306.701348,0.00014794,2]
[338698997,1726884641459,-306.701348,0.00014794,2]
[338698999,1726884641469,-306.70134,0.00014794,2]
[338699001,1726884641478,-152.016662,0.00014794,2]
[338699003,1726884641487,-152.016662,0.00014794,2]
[338699005,1726884641496,-152.016662,0.00014794,2]
[338699007,1726884641505,-152.016662,0.00014794,2]
[338699009,1726884641516,-152.016662,0.00014794,2]
[338699011,1726884641525,-152.016662,0.00014794,2]
[338699013,1726884641535,-152.016662,0.00014794,2]
[338699014,1726884641544,-152.016662,0.00014794,2]
[338699016,1726884641553,-152.016662,0.00014794,2]
[338699018,1726884641562,-152.016662,0.00014794,2]
[338699020,1726884641571,-152.016662,0.00014794,2]
[338699022,1726884641582,-152.016662,0.00014794,2]
[338699024,1726884641590,-152.016662,0.00014794,2]
[338699026,1726884641600,-152.016662,0.00014794,2]
[338699028,1726884641609,-152.016662,0.00014794,2]
[338699030,1726884641618,-152.016652,0.00014794,2]